Cogmind - Beta 16 @@@ ROGUE MODE // 2025.11.19 @ 12:18:01 Player: MolePlayingNice Result: Destroyed by P-70 Sage with High-powered Shock Rifle Performance ------------- Evolutions (5) 2500 Regions Visited (16) 3200 Robots Destroyed (141) 705 Value Destroyed (8409) 8409 Prototype IDs (26) 520 Alien Tech Used (0) 0 Bonus (4950) 4950 TOTAL SCORE: 20284 Bonus ------- High Alert Combat Kills 590 Follower Combat Kills 1260 Entered Garrisons 800 Used RIF Installer 1500 Registered with UFD 300 Met Optimus in HQ 500 Cogmind --------- Core Integrity 0/1000 Matter 280/300 Energy 85/100 System Corruption 13% Temperature Cool (0) Movement Flying (120) Ox1 Location -5/Garrison Parts ------- > --- POWER (1) -------- (None) > --- PROPULSION (5) --- Nuclear Pulse Array > --- UTILITY (9) ------ Nanoactuators Improved Medium Armor Plating Relay Coupler [Swarmer] (33) Relay Coupler [Grunt] (21) Relay Coupler [Sentry] (29) Relay Coupler [Behemoth] (6) A0-MCA's Component Scanner > --- WEAPON (2) ------- Power Maul Power Maul > --- INVENTORY (5) ---- Micro Fission Core Relay Coupler [Hunter] (15) Power Maul Peak State ------------ > --- POWER ------------ Micro Fission Core > --- PROPULSION ------- Field Propulsion Drive Nuclear Pulse Array Nuclear Pulse Array > --- UTILITY ---------- Small Storage Unit Deep Structural Scanner Advanced Melee Analysis Suite Nanoactuators Stasis Canceller Relay Coupler [Swarmer] Relay Coupler [Sentry] Relay Coupler [Behemoth] A0-MCA's Component Scanner > --- WEAPON ----------- Improved Remote Datajack Power Maul > --- INVENTORY -------- Nuclear Pulse Array Relay Coupler [Grunt] Relay Coupler [Sentry] Relay Coupler [Hunter] Relay Coupler [Proto] LU-1G1's Laser Shovel Power Maul [Rating: 94] Favorites ----------- Power Light Nuclear Core Engine Deuterium Engine Power Core Light Nuclear Core Reactor Graviton Reactor Propulsion Light Treads Treads Light Treads Leg Aluminum Leg Hover Unit Gravmag Array Flight Unit VTOL Module Utility Improved Light Armor Plating Device Cooling System Storage Small Storage Unit Processor A0-MCA's Component Scanner Hackware Relay Coupler [Grunt] Protection Improved Light Armor Plating Weapon Precision Beam Rifle Energy Gun Precision Beam Rifle Energy Cannon Heavy Plasma Cannon Ballistic Gun Autogun Launcher Advanced EMP Blaster Special Weapon Remote Datajack Impact Weapon Power Maul Slashing Weapon Katana Piercing Weapon Heavy Pick Special Melee Weapon Improved Datajack Build | -11 -10 -9 -8 -8 -8 -8 -6 -6 -6 -6 -6 -6 -5 -5 -5 -5 ------- Run | Yrd Mat Mat Mat Sto Rec Scr Fac Was Fac Gar Fac Gar Fac Gar Fac Gar Slots Evolved 10 | . . 2 2 . . . 4 . . . . . 2 . . . Power . | . . . . . . . . . . . . . . . . . Propulsion 3 | . . 1 . . . . 2 . . . . . . . . . Utility 7 | . . 1 2 . . . 2 . . . . . 2 . . . Weapon . | . . . . . . . . . . . . . . . . . Parts Attached 222 | . 7 23 14 26 2 16 10 . 6 25 . 28 14 29 12 10 Power 25 | . 3 4 . 1 . 2 1 . . 4 . 4 2 2 1 1 Engine 10 | . 1 4 . 1 . . 1 . . 1 . 1 1 . . . Core 13 | . 2 . . . . 1 . . . 3 . 2 1 2 1 1 Reactor 2 | . . . . . . 1 . . . . . 1 . . . . Propulsion 69 | . 1 8 7 9 . 3 1 . . 8 . 11 5 11 3 2 Treads 22 | . . 6 7 8 . 1 . . . . . . . . . . Leg 6 | . 1 2 . . . . . . . . . 3 . . . . Wheel . | . . . . . . . . . . . . . . . . . Hover 3 | . . . . . . . 1 . . . . 1 1 . . . Flight 38 | . . . . 1 . 2 . . . 8 . 7 4 11 3 2 Utility 82 | . 2 2 6 5 2 9 6 . 5 11 . 7 3 13 5 6 Device 21 | . 1 . 3 1 . 3 3 . 5 1 . . 1 3 . . Storage 3 | . . 1 . . 1 1 . . . . . . . . . . Processor 7 | . . . 1 1 . . 3 . . . . . 1 . 1 . Hackware 40 | . 1 . . . . 4 . . . 9 . 7 1 9 4 5 Protection 11 | . . 1 2 3 1 1 . . . 1 . . . 1 . 1 Artifact . | . . . . . . . . . . . . . . . . . Weapon 46 | . 1 9 1 11 . 2 2 . 1 2 . 6 4 3 3 1 Energy Gun 11 | . . 2 1 6 . . . . . . . 2 . . . . Energy Cannon 1 | . . . . . . . . . . . . . 1 . . . Ballistic Gun 14 | . 1 7 . 1 . . . . . . . 3 1 1 . . Ballistic Cannon . | . . . . . . . . . . . . . . . . . Launcher 1 | . . . . 1 . . . . . . . . . . . . Special Weapon 7 | . . . . . . 1 . . . 2 . 1 2 . 1 . Impact Weapon 7 | . . . . 1 . . . . 1 . . . . 2 2 1 Slashing Weapon 1 | . . . . . . 1 . . . . . . . . . . Piercing Weapon 2 | . . . . . . . 2 . . . . . . . . . Special Melee Weapon 2 | . . . . 2 . . . . . . . . . . . . Unidentified Prototypes 10 | . . 3 . 4 . 2 . . . . . . 1 . . . Parts Lost 48 | . 1 5 . 4 . . 1 . . 2 . 17 . 8 . 10 Power 7 | . 1 1 . . . . 1 . . . . 4 . . . . Propulsion 23 | . . 2 . 1 . . . . . 2 . 7 . 7 . 4 Utility 11 | . . 1 . 2 . . . . . . . 2 . 1 . 5 Weapon 7 | . . 1 . 1 . . . . . . . 4 . . . 1 Highest Loss Streak 11 | . 1 4 . 2 . . 1 . . 1 . 11 . 3 . 5 To Critical Strikes . | . . . . . . . . . . . . . . . . . Average Backups 10 | 6 7 11 14 14 14 16 8 8 7 7 8 6 7 6 7 6 Power . | 1 1 . . . . . . . . . . . . . . . Propulsion 2 | 4 2 2 4 3 4 3 . . . . . . . . . . Utility 4 | . 2 3 5 5 5 7 4 4 4 5 6 4 3 3 4 3 Weapon 2 | 1 1 4 4 4 4 3 1 1 1 1 1 . 1 . . . Tool/Special . | . . . . . . . . . . . . . . . . . Unused Backups 37 | . 3 6 3 5 1 2 . . 2 6 . . . 4 2 3 Power 2 | . 2 . . . . . . . . . . . . . . . Propulsion 1 | . . . 1 . . . . . . . . . . . . . Utility 20 | . 1 2 . 1 1 2 . . 1 6 . . . 2 1 3 Weapon 12 | . . 4 2 4 . . . . . . . . . 1 1 . Tool/Special 2 | . . . . . . . . . 1 . . . . 1 . . Average Slot Usage (%) 94 | . 95 98 97 99 100 95 82 93 92 96 95 91 98 85 91 83 Engine 4 | . 9 10 9 9 9 . 1 6 6 4 . 1 2 . . . Core 2 | . 3 . . . . 8 . . . 1 6 2 2 4 5 4 Treads 12 | . . 26 27 26 27 22 . . . . . . . . . . Leg 2 | . 28 6 . . . . . . . . . 6 . . . . Flight 11 | . . . . . . 4 20 20 20 29 28 25 28 24 20 15 Device 7 | . 8 9 9 8 9 9 11 13 12 2 . . 8 7 17 12 Storage 7 | . 14 11 9 9 9 8 6 6 6 5 6 4 5 3 5 4 Processor 7 | . . . 6 7 9 8 7 13 13 13 13 7 5 9 7 10 Hackware 12 | . 1 11 9 9 1 1 13 13 13 17 20 28 29 22 20 21 Protection 6 | . . 1 9 10 16 14 1 . . 4 6 2 . 1 . . Energy Gun 7 | . . 8 16 16 18 15 . . . . . 1 . . . . Ballistic Gun 3 | . 28 13 1 . . . . . . . . 3 7 1 . . Special Weapon 1 | . . . . . . . . . . 5 6 2 2 3 5 3 Impact Weapon 1 | . . . . . . . . . 3 . . 1 . 3 5 5 Piercing Weapon 1 | . . . . . . . 7 13 8 6 6 2 . . . . Peak Build Rating 94 | 6 10 18 25 32 30 41 68 68 69 69 60 62 73 73 92 94 Average Rating 42 | 6 7 15 23 27 29 33 55 68 67 59 57 50 59 57 80 87 On Entrance 44 | 6 6 10 17 25 29 29 39 68 68 69 60 60 48 67 67 90 Avg Prop Armor Cover (%) 12 | . . 13 . . . 3 12 12 12 11 . 12 . 8 . . Naked Turns . | . . . . . . . . . . . . . . . . . Heaviest Build 65 | 11 15 35 42 41 65 65 23 21 22 24 21 25 22 25 23 23 Greatest Support 70 | 20 20 60 62 62 60 70 27 27 27 36 25 45 25 25 33 33 Greatest Overweight (x) 3 | . . . . 1 1 1 3 . 1 . . 3 1 1 . 1 Average Overweight (x) . | . . . . . . . . . . . . . . . . . Largest Inventory Capacity 20 | 8 8 15 15 15 20 20 8 8 8 8 8 8 8 8 8 8 Average Capacity 11 | 8 8 12 15 15 17 17 8 8 8 7 8 7 8 6 8 7 Most Carried 20 | 6 8 15 15 15 16 20 8 8 8 8 8 8 8 8 8 8 Average Carried 11 | 6 7 11 14 14 14 16 7 8 7 7 8 6 7 6 7 7 Final Capacity 20 | 8 8 15 15 15 20 8 8 8 8 8 8 8 8 8 8 5 Final Carried 16 | 6 8 15 15 14 16 8 8 8 8 8 8 8 8 8 8 3 Class Distribution -------------------- 23% | Commander-Mutant 23% | Scavenger-Mutant 22% | Bothacker-Sprinter 11% | Mutant 6% | Bothacker-Mutant 6% | Hacker-Sprinter Dominant Class ---------------- Mutant | -10/Materials Scavenger-Mutant | -9/Materials Scavenger-Mutant | -8/Materials Scavenger-Mutant | -8/Storage Commander-Mutant | -8/Recycling Commander-Mutant | -8/Scraptown Hacker-Sprinter | -6/Factory Hacker-Sprinter | -6/Waste Hacker-Sprinter | -6/Factory Bothacker-Sprinter | -6/Garrison Bothacker-Mutant | -6/Factory Bothacker-Sprinter | -6/Garrison Bothacker-Sprinter | -5/Factory Bothacker-Sprinter | -5/Garrison Bothacker-Sprinter | -5/Factory Bothacker-Mutant | -5/Garrison Resources | -11 -10 -9 -8 -8 -8 -8 -6 -6 -6 -6 -6 -6 -5 -5 -5 -5 ----------- Run | Yrd Mat Mat Mat Sto Rec Scr Fac Was Fac Gar Fac Gar Fac Gar Fac Gar Matter Collected 5374 | 200 238 591 143 429 75 330 92 . 174 629 . 693 57 1160 140 423 Remotely . | . . . . . . . . . . . . . . . . . Salvage Created 6459 | . 434 1033 531 1757 212 150 . . 536 507 . 475 37 238 140 409 Parts 278 | . 29 54 23 76 4 10 . . 11 27 . 27 3 7 . 7 Haulers Intercepted 10 | . . 3 1 5 . . . . 1 . . . . . . . Recyclers Shooed 8 | . 3 1 . 1 . . . . 3 . . . . . . . Parts Field Recycled . | . . . . . . . . . . . . . . . . . Retrieved Matter . | . . . . . . . . . . . . . . . . . Parts Self-Destructed . | . . . . . . . . . . . . . . . . . Prevented . | . . . . . . . . . . . . . . . . . Parts Restored . | . . . . . . . . . . . . . . . . . Kills | -11 -10 -9 -8 -8 -8 -8 -6 -6 -6 -6 -6 -6 -5 -5 -5 -5 ------- Run | Yrd Mat Mat Mat Sto Rec Scr Fac Was Fac Gar Fac Gar Fac Gar Fac Gar Combat Hostiles Destroyed 110 | . 7 20 13 25 4 2 . . . 11 . 12 1 4 2 9 Melee 24 | . . . . . . 2 . . . 11 . 5 . 2 . 4 Guns 72 | . 7 20 13 20 4 . . . . . . 6 1 1 . . Classes Destroyed 18 | . 4 4 2 2 . 2 . . 1 1 . 2 . . . . Worker 2 | . . . 1 . . . . . . . . . 1 . . . Builder 2 | . 1 . . . . . . . 1 . . . . . . . Hauler 10 | . . 3 1 5 . . . . 1 . . . . . . . Recycler 10 | . 1 1 . 5 . . . . 3 . . . . . . . Mechanic 1 | . . 1 . . . . . . . . . . . . . . Operator 3 | . 2 . . 1 . . . . . . . . . . . . Watcher 2 | . . . . . . . . . 1 . . 1 . . . . Swarmer 28 | . . 6 6 4 . . . . . 3 . 7 1 1 . . Grunt 36 | . 7 6 3 8 . . . . . 4 . 1 . 1 . 6 Brawler 2 | . . . . 1 . . . . . . . . . 1 . . Duelist 1 | . . . . 1 . . . . . . . . . . . . Sentry 28 | . . 8 3 10 4 . . . . 1 . . . . 2 . Specialist 1 | . . . . . . . . . . . . 1 . . . . Hunter 3 | . . . 1 1 . . . . . . . . . . . 1 Programmer 8 | . . . . . . . . . . 3 . 3 . . . 2 Behemoth 2 | . . . . . . . . . . . . 1 . 1 . . Scrapper 2 | . . . . . . 2 . . . . . . . . . . Tinkerer 1 | . . . . . . 1 . . . . . . . . . . Best Kill Streak 6 | . 3 5 6 5 2 2 . . 2 3 . 2 2 2 1 2 Combat Bots Only 5 | . 2 5 3 4 2 1 . . . 3 . 2 1 2 1 2 Max Kills in Single Turn 2 | . 1 2 1 1 1 1 . . 1 1 . 2 1 1 1 1 Gunslinging 1 | . . . . . . . . . . . . 1 . . . . Exploded . | . . . . . . . . . . . . . . . . . Melee 1 | . . . . . . 1 . . . 1 . 1 . 1 . 1 Uniques/NPCs Destroyed . | . . . . . . . . . . . . . . . . . Combat | -11 -10 -9 -8 -8 -8 -8 -6 -6 -6 -6 -6 -6 -5 -5 -5 -5 -------- Run | Yrd Mat Mat Mat Sto Rec Scr Fac Was Fac Gar Fac Gar Fac Gar Fac Gar Hostile Shots Fired 939 | . 35 158 61 168 14 7 20 . . 98 . 151 4 109 4 110 Missed 351 | . 6 42 15 48 4 3 16 . . 49 . 64 1 46 2 55 Hits 588 | . 29 116 46 120 10 4 4 . . 49 . 87 3 63 2 55 Melee 9 | . . . . 5 . . . . . . . . . 3 . 1 Projectile 579 | . 29 116 46 115 10 4 4 . . 49 . 87 3 60 2 54 AOE 1 | . . . . . . . . . . . . 1 . . . . Critical Strikes 18 | . . 3 1 5 1 . . . . 1 . 3 . 1 1 2 Part Disruptions 1 | . . . . . . . . . . . . . . . . 1 Damage Taken 9377 | . 350 1362 609 1843 144 56 204 . . 694 . 1682 61 1044 62 1266 Core 2300 | . 58 204 160 209 . 12 78 . . 148 . 423 24 588 . 396 Absorbed by Shields . | . . . . . . . . . . . . . . . . . Regen/Repaired (Parts) 779 | . . 262 . . . . . . 77 141 45 254 . . . . Core Remaining (%) 55 | 100 76 49 . . . 30 . . . . . 23 . . . . Volleys Fired 424 | . 30 89 38 107 10 . . . . 40 . 30 18 37 8 17 Largest 2 | . 2 2 2 2 2 . . . . 1 . 2 2 1 1 1 Hottest 122 | . 40 79 112 122 122 . . . . 5 . 119 90 33 7 7 Shots Fired 715 | . 60 178 76 214 20 . . . . 40 . 44 21 37 8 17 Gun 586 | . 60 178 76 214 20 . . . . . . 30 6 2 . . Cannon 1 | . . . . . . . . . . . . . 1 . . . Launcher . | . . . . . . . . . . . . . . . . . Special 128 | . . . . . . . . . . 40 . 14 14 35 8 17 Kinetic 235 | . 60 125 1 19 . . . . . . . 22 6 2 . . Thermal 351 | . . 53 75 195 20 . . . . . . 7 1 . . . Explosive . | . . . . . . . . . . . . . . . . . Electromagnetic 1 | . . . . . . . . . . . . 1 . . . . Robot Hit Streak 24 | . 8 13 15 24 24 . . . . 8 . 7 12 18 11 11 Robot Miss Streak 7 | . 2 7 2 2 1 . . . . 5 . 4 2 1 1 1 Penetration Max . | . . . . . . . . . . . . . . . . . Secondary Targets 9 | . 1 1 1 4 . . . . . . . 1 1 . . . Max Gunslinging Chain 1 | . 1 1 1 1 . . . . . . . 1 1 . . . Shots Hit Robots 651 | . 44 125 56 174 14 4 2 . 11 58 . 45 16 35 14 53 Core Hits 186 | . 21 39 24 55 7 2 . . 3 12 . 15 3 3 . 2 Critical Kills 7 | . 2 1 . . . . . . . 1 . 2 . 1 . . Critical Parts Destroyed 21 | . 2 . . . . . . . 1 . . 5 . 2 3 8 Critical Strikes 73 | . 4 3 9 25 2 . . . 2 5 . 8 . 3 3 9 Burn 38 | . . 2 9 25 2 . . . . . . . . . . . Destroy 6 | . 4 1 . . . . . . . . . . . 1 . . Smash 23 | . . . . . . . . . 1 1 . 7 . 2 3 9 Impale 6 | . . . . . . . . . 1 4 . 1 . . . . Melee Attacks 317 | . . . . 1 . 13 7 . 35 72 . 47 . 45 14 83 Impact 180 | . . . . 1 . . . . 10 9 . 18 . 45 14 83 Slashing 18 | . . . . . . 13 5 . . . . . . . . . Piercing 115 | . . . . . . . 2 . 25 59 . 29 . . . . Sneak Attacks 42 | . . . . . . 2 1 . 8 11 . 5 . . 7 8 Combat Hostiles 2 | . . . . . . . . . . 1 . . . . . 1 Follow-up Attacks 2 | . . . . . . . . . . 1 . 1 . . . . Damage Inflicted 14334 | . 598 1928 911 3082 292 215 103 . 676 1594 . 1501 58 304 497 2575 Guns 6994 | . 584 1890 884 3074 248 . . . . . . 219 58 37 . . Cannons . | . . . . . . . . . . . . . . . . . Explosions 190 | . . . . . . . . . . . . . . . . 190 Melee 7005 | . . . . . . 215 103 . 676 1594 . 1268 . 267 497 2385 Ramming 145 | . 14 38 27 8 44 . . . . . . 14 . . . . Kinetic 2252 | . 584 1177 13 217 . . . . . . . 166 58 37 . . Thermal 4742 | . . 713 871 2857 248 . . . . . . 53 . . . . Explosive 190 | . . . . . . . . . . . . . . . . 190 Electromagnetic . | . . . . . . . . . . . . . . . . . Impact 4184 | . . . . . . . . . 143 154 . 738 . 267 497 2385 Slashing 318 | . . . . . . 215 103 . . . . . . . . . Piercing 2503 | . . . . . . . . . 533 1440 . 530 . . . . Highest Corruption 13 | . . . . . . . 3 12 12 6 6 7 1 1 1 13 Average Corruption 4 | . . . . . . . 3 6 7 5 6 6 1 1 1 5 Corruption Purged 12 | . . . . . . . . . 12 . . . . . . . Corruption Blocked . | . . . . . . . . . . . . . . . . . Effects 116 | . . . . . . . 4 1 4 28 4 46 1 11 2 15 Message Errors 28 | . . . . . . . . . 3 2 1 14 1 2 . 5 Matter Fused 24 | . . . . . . . 3 . 1 6 1 8 . 2 . 3 Heat Flow Errors 13 | . . . . . . . . . . 5 . 2 . 5 . 1 Energy Discharges 18 | . . . . . . . 1 . . 6 . 9 . . . 2 Parts Rejected 2 | . . . . . . . . . . 1 . 1 . . . . Parts Fused 3 | . . . . . . . . . . 1 . 1 . . 1 . Data Loss (minor) 13 | . . . . . . . . . . 3 2 4 . 2 1 1 Data Loss (major) 7 | . . . . . . . . . . 3 . 3 . . . 1 Misfires 4 | . . . . . . . . . . . . 4 . . . . Alerts 1 | . . . . . . . . . . 1 . . . . . . Misdirections 3 | . . . . . . . . 1 . . . . . . . 2 Overload Shots . | . . . . . . . . . . . . . . . . . Overflow Damage 2090 | . . . . . . 111 33 . 318 103 . 326 . 134 222 843 Projectiles . | . . . . . . . . . . . . . . . . . Explosions 17 | . . . . . . . . . . . . . . . . 17 Melee 2073 | . . . . . . 111 33 . 318 103 . 326 . 134 222 826 Knockbacks 12 | . . . . . . . . . 1 . . 5 . . . 6 Impact 12 | . . . . . . . . . 1 . . 5 . . . 6 Kinetic . | . . . . . . . . . . . . . . . . . Secondary . | . . . . . . . . . . . . . . . . . Self-Inflicted Damage 155 | . . . . . . . . . . . . . . . . 155 Shots 1 | . . . . . . . . . . . . . . . . 1 Rammed 17 | . . 6 1 3 6 . . . . . . . 1 . . . Targets Rammed 29 | . 4 6 2 3 6 . . . . . . 7 1 . . . Kicked 11 | . 4 . . . . . . . . . . 7 . . . . Crushed 1 | . . . 1 . . . . . . . . . . . . . Highest Temperature 281 | . 5 22 60 126 22 . . . . 281 3 173 34 250 . 187 Average Temperature 58 | . 2 6 18 42 9 . . . . 135 2 51 15 99 . 96 Received Heat Transfer 1985 | . 198 405 189 747 63 18 9 . . 110 . 84 18 78 12 54 Effects 1 | . . . . . . . . . . 1 . . . . . . Energy Bleed 1 | . . . . . . . . . . 1 . . . . . . Siege Activations . | . . . . . . . . . . . . . . . . . Martial Activations . | . . . . . . . . . . . . . . . . . Shielding Activations . | . . . . . . . . . . . . . . . . . Robots Disrupted . | . . . . . . . . . . . . . . . . . Combat Hostiles . | . . . . . . . . . . . . . . . . . Robots Corrupted 11 | . . . . . . . . . 2 . . 1 . 1 2 5 Combat Hostiles 9 | . . . . . . . . . . . . 1 . 1 2 5 Parts Fried 13 | . . . . . . . . . 3 . . 2 . 3 2 3 Impact Corruptions 50 | . . . . . . . . . 5 1 . 7 . 3 3 31 Robots Melted 5 | . . . . 5 . . . . . . . . . . . . Combat Hostiles 5 | . . . . 5 . . . . . . . . . . . . Parts Melted 37 | . . 1 16 18 2 . . . . . . . . . . . Heat Transferred 13283 | . . 1702 2738 8066 666 . . . . . . 111 . . . . Parts Sabotaged 11 | . . . . . . . . . . . . . . 11 . . Parts Stolen . | . . . . . . . . . . . . . . . . . Parts Stripped . | . . . . . . . . . . . . . . . . . Power Chain Reactions . | . . . . . . . . . . . . . . . . . Alert | -11 -10 -9 -8 -8 -8 -8 -6 -6 -6 -6 -6 -6 -5 -5 -5 -5 ------- Run | Yrd Mat Mat Mat Sto Rec Scr Fac Was Fac Gar Fac Gar Fac Gar Fac Gar Maximum Alert Level 4 | . . . 1 1 . . . . . 4 2 3 2 4 3 4 Low Security (%) 49 | 100 100 100 95 64 100 . 100 100 100 5 . . . . . . Level 1 9 | . . . 4 35 . . . . . 33 . 7 45 4 . . Level 2 20 | . . . . . . . . . . 35 100 66 54 36 . 21 Level 3 12 | . . . . . . . . . . 16 . 26 . 24 100 37 Level 4 7 | . . . . . . . . . . 8 . . . 33 . 41 Level 5 . | . . . . . . . . . . . . . . . . . High Security . | . . . . . . . . . . . . . . . . . Max Security . | . . . . . . . . . . . . . . . . . Peak Influence 1564 | . 110 162 217 297 152 . 131 35 45 1118 586 947 593 1564 1058 1272 Initial 821 | . . . 51 87 112 . . 35 17 21 586 351 497 188 821 563 Average 382 | . 47 100 54 162 36 . 78 32 7 544 548 636 409 911 884 960 Influence Increases 7965 | . 230 646 418 760 266 . 222 . 158 1237 6 816 227 1626 534 819 Destroy 0b10 Robot/C 3000 | . 140 400 260 520 80 . . . . 300 . 280 100 500 180 240 Destroy 0b10 Robot/NC 160 | . 20 25 10 55 . . . . 30 . . 5 10 . 5 . Destroy Leader 584 | . 40 116 72 160 . . . . 4 20 . 40 12 40 50 30 Allied During Kill 357 | . . . . 4 . . . . . 24 . 16 29 198 80 6 Trap Triggered on 0b10 10 | . . . . 10 . . . . . . . . . . . . Successful Hack 199 | . 14 11 30 9 6 . 39 . 34 . 6 . . . 50 . Select Force Hacks 180 | . . . . . 180 . . . . . . . . . . . Disable Machine 120 | . . . 15 . . . 15 . . . . . . 30 45 15 Anti-Garrison Action 1500 | . . . . . . . . . . 650 . 300 . 350 . 200 Destroy Structure 625 | . 1 4 1 2 . . 3 . 15 123 . 25 16 208 34 193 Partial Spotted 480 | . . . . . . . 75 . 75 15 . 60 45 45 90 75 Lose Combat Pursuer 750 | . 15 90 30 . . . 90 . . 105 . 90 15 255 . 60 Influence Decreases 6743 | . 230 524 331 680 555 . 120 77 153 149 622 371 905 331 1293 402 Entered New Map 2653 | . . . 71 122 177 . . 67 8 9 532 151 450 81 743 242 Time Decay 2395 | . 220 474 260 478 378 . 110 10 145 . 90 . 100 . 130 . Lost Part 480 | . 10 50 . 40 . . 10 . . 20 . 170 . 80 . 100 Lost Ally 640 | . . . . 40 . . . . . 120 . 50 80 170 120 60 Purge Threat 575 | . . . . . . . . . . . . . 275 . 300 . Squads Dispatched 25 | . 3 . . 6 . . 2 . 5 . . . 5 . 4 . Investigation 12 | . . . . . . . 1 . 3 . . . 4 . 4 . Extermination 1 | . . . . . . . . . 1 . . . . . . . Reinforcement 8 | . 3 . . 2 . . 1 . 1 . . . 1 . . . Assault 2 | . . . . 2 . . . . . . . . . . . . Garrison 2 | . . . . 2 . . . . . . . . . . . . Intercept . | . . . . . . . . . . . . . . . . . Searches Triggered . | . . . . . . . . . . . . . . . . . Construction Impeded 1 | . . . . . . . 1 . . . . . . . . . Haulers Reinforced . | . . . . . . . . . . . . . . . . . Active Scanning Responses . | . . . . . . . . . . . . . . . . . Cargo Convoy Interrupts . | . . . . . . . . . . . . . . . . . Stealth | -11 -10 -9 -8 -8 -8 -8 -6 -6 -6 -6 -6 -6 -5 -5 -5 -5 --------- Run | Yrd Mat Mat Mat Sto Rec Scr Fac Was Fac Gar Fac Gar Fac Gar Fac Gar Distress Signals 10 | . . 2 2 1 . . . . 1 . . . . . 4 . Communications Jammed 12 | . . . . . . . . . . . . . 11 . 1 . Distress Signals 12 | . . . . . . . . . . . . . 11 . 1 . Times Spotted 308 | . 13 28 19 39 4 20 7 5 5 36 2 29 15 56 11 19 Peak Tracking Total 10 | . 3 6 4 4 2 8 5 5 2 6 2 5 4 10 3 4 Tactical Retreats 32 | . 1 4 2 . . 2 3 . . 4 . 6 1 6 . 3 Traps | -11 -10 -9 -8 -8 -8 -8 -6 -6 -6 -6 -6 -6 -5 -5 -5 -5 ------- Run | Yrd Mat Mat Mat Sto Rec Scr Fac Was Fac Gar Fac Gar Fac Gar Fac Gar Traps Triggered 37 | . . 1 . 5 . . 3 . 1 4 . 13 1 4 . 5 Indirectly . | . . . . . . . . . . . . . . . . . Trap Hack Attempts 11 | . . . . 11 . . . . . . . . . . . . Triggered . | . . . . . . . . . . . . . . . . . Disarmed . | . . . . . . . . . . . . . . . . . Reprogrammed 1 | . . . . 1 . . . . . . . . . . . . Reused 1 | . . . . 1 . . . . . . . . . . . . Traps Extracted . | . . . . . . . . . . . . . . . . . Installed . | . . . . . . . . . . . . . . . . . Triggered 1 | . . . . 1 . . . . . . . . . . . . Machines | -11 -10 -9 -8 -8 -8 -8 -6 -6 -6 -6 -6 -6 -5 -5 -5 -5 ---------- Run | Yrd Mat Mat Mat Sto Rec Scr Fac Was Fac Gar Fac Gar Fac Gar Fac Gar Machines Disabled 30 | . . . 1 . . 2 1 . . 5 . 4 . 7 3 7 Max in Single Turn 2 | . . . 1 . . 1 1 . . 1 . 1 . 1 . 2 Garrison Relay 17 | . . . . . . . . . . 5 . 4 . 5 . 3 Phase Generator 2 | . . . . . . . . . . . . 1 . . . 1 Machines Repaired . | . . . . . . . . . . . . . . . . . Machines Dismantled . | . . . . . . . . . . . . . . . . . Machines Sabotaged . | . . . . . . . . . . . . . . . . . Overloaded Fab Kills . | . . . . . . . . . . . . . . . . . Hacking | -11 -10 -9 -8 -8 -8 -8 -6 -6 -6 -6 -6 -6 -5 -5 -5 -5 --------- Run | Yrd Mat Mat Mat Sto Rec Scr Fac Was Fac Gar Fac Gar Fac Gar Fac Gar Machines Accessed 67 | . 1 5 4 6 10 1 4 . 8 2 3 2 8 1 9 3 Terminals 35 | . 1 3 4 5 4 . 3 . 3 2 . 2 2 1 2 3 Fabricators 2 | . . . . . . . . . . . . . 2 . . . Repair Stations 5 | . . 1 . . . . . . 1 . 2 . . . 1 . Recycling Units 16 | . . . . 1 6 . . . 3 . . . 2 . 4 . Scanalyzers 4 | . . 1 . . . . 1 . . . . . 1 . 1 . Garrison Access 4 | . . . . . . . . . 1 . 1 . 1 . 1 . Total Hacks 169 | . 2 18 14 12 16 18 7 . 20 3 10 4 17 2 21 5 Successful 89 | . 1 9 6 4 7 18 5 . 11 1 6 1 9 1 10 . Failed 78 | . 1 9 7 8 9 . 2 . 9 2 4 3 7 1 11 5 Catastrophic 15 | . . 2 . 1 3 . 2 . . . 1 . 2 . 1 3 Database Lockouts 2 | . . . 1 . . . . . . . . . 1 . . . Manual 57 | . 1 4 9 3 16 . . . 6 1 . 1 4 . 12 . Terminals 88 | . 2 8 14 11 10 . 4 . 12 3 . 4 4 2 9 5 Fabricators 5 | . . . . . . . . . . . . . 5 . . . Repair Stations 20 | . . 7 . . . . . . 3 . 8 . . . 2 . Recycling Units 21 | . . . . 1 6 . . . 3 . . . 4 . 7 . Scanalyzers 10 | . . 3 . . . . 3 . . . . . 2 . 2 . Garrison Access 7 | . . . . . . . . . 2 . 2 . 2 . 1 . Terminal Hacks 43 | . 1 2 6 3 1 18 2 . 4 1 . 1 . 1 3 . Record 18 | . . . . . . 18 . . . . . . . . . . Robot Schematic 1 | . . . 1 . . . . . . . . . . . . . Robot Analysis 1 | . . . . . . . . . 1 . . . . . . . Prototype ID Bank 3 | . . . 1 1 1 . . . . . . . . . . . Open Door 2 | . . . . 2 . . . . . . . . . . . . Branch Access Points 2 | . . 1 1 . . . . . . . . . . . . . Emergency Access Points 3 | . . . . . . . . . . 1 . 1 . 1 . . Garrison Index 1 | . . . . . . . . . 1 . . . . . . . Unreport Threat 2 | . . . . . . . . . . . . . . . 2 . Hauler Manifests 5 | . 1 1 1 . . . 1 . 1 . . . . . . . Registered Components 3 | . . . . . . . 1 . 1 . . . . . 1 . Zone Layout 2 | . . . 2 . . . . . . . . . . . . . Fabricator Hacks 1 | . . . . . . . . . . . . . 1 . . . Network Status 1 | . . . . . . . . . . . . . 1 . . . Repair Station Hacks 13 | . . 6 . . . . . . 2 . 4 . . . 1 . Scan Component 7 | . . 3 . . . . . . 1 . 2 . . . 1 . Repair 6 | . . 3 . . . . . . 1 . 2 . . . . . Recycling Unit Hacks 3 | . . . . 1 . . . . . . . . 2 . . . Retrieve Components 3 | . . . . 1 . . . . . . . . 2 . . . Scanalyzer 6 | . . 1 . . . . 3 . . . . . 1 . 1 . Insert Component 1 | . . 1 . . . . . . . . . . . . . . Retrieve Study 5 | . . . . . . . 3 . . . . . 1 . 1 . Garrison Access Hacks 6 | . . . . . . . . . 1 . 2 . 2 . 1 . Unlock Access 4 | . . . . . . . . . 1 . 1 . 1 . 1 . Coupler Status 2 | . . . . . . . . . . . 1 . 1 . . . Unauthorized Hacks 17 | . . . . . 6 . . . 4 . . . 3 . 4 . Terminals 1 | . . . . . . . . . 1 . . . . . . . Botnet 1 | . . . . . . . . . 1 . . . . . . . Fabricators 1 | . . . . . . . . . . . . . 1 . . . Liberate 1 | . . . . . . . . . . . . . 1 . . . Repair Stations . | . . . . . . . . . . . . . . . . . Recycling Units 15 | . . . . . 6 . . . 3 . . . 2 . 4 . Tunnel 6 | . . . . . 6 . . . . . . . . . . . Fedlink 9 | . . . . . . . . . 3 . . . 2 . 4 . Scanalyzers . | . . . . . . . . . . . . . . . . . Garrison Access . | . . . . . . . . . . . . . . . . . Data Cores Recovered 1 | . . . . . . . . . . . . . . . 1 . Used . | . . . . . . . . . . . . . . . . . Hacking Detections 47 | . 1 4 4 4 4 . 4 . 4 2 3 2 5 1 6 3 Full Trace Events 3 | . . . . 1 . . . . . . . . 2 . . . Feedback Events . | . . . . . . . . . . . . . . . . . Feedback Blocked . | . . . . . . . . . . . . . . . . . Robot Schematics Acquired 1 | . . . 1 . . . . . . . . . . . . . Robots Built . | . . . . . . . . . . . . . . . . . Authchips . | . . . . . . . . . . . . . . . . . Time . | . . . . . . . . . . . . . . . . . Total Robot Build Rating . | . . . . . . . . . . . . . . . . . Part Schematics Acquired . | . . . . . . . . . . . . . . . . . Parts Built . | . . . . . . . . . . . . . . . . . Authchips . | . . . . . . . . . . . . . . . . . Time . | . . . . . . . . . . . . . . . . . Total Part Build Rating . | . . . . . . . . . . . . . . . . . Part Studies Acquired 5 | . . . . . . . 3 . . . . . 1 . 1 . Parts Repaired 6 | . . 3 . . . . . . 1 . 2 . . . . . Time 227 | . . 78 . . . . . . 38 . 111 . . . . . Parts Recycled . | . . . . . . . . . . . . . . . . . Recycled Matter . | . . . . . . . . . . . . . . . . . Retrieved Matter . | . . . . . . . . . . . . . . . . . Retrieved Components 13 | . . . . 10 . . . . . . . . 3 . . . Parts Scanalyzed . | . . . . . . . . . . . . . . . . . Part Schematics Acquired . | . . . . . . . . . . . . . . . . . Parts Damaged . | . . . . . . . . . . . . . . . . . Bothacking | -11 -10 -9 -8 -8 -8 -8 -6 -6 -6 -6 -6 -6 -5 -5 -5 -5 ------------ Run | Yrd Mat Mat Mat Sto Rec Scr Fac Was Fac Gar Fac Gar Fac Gar Fac Gar Used RIF Installer 3 | . . . . . . . . . . 1 . 1 . 1 . . Signal Jammer 1 | . . . . . . . . . . . . 1 . . . . Patrol Navigation 1 | . . . . . . . . . . . . . . 1 . . Robots Hacked 64 | . . . . . . . . . . 16 . 9 4 19 6 10 Non-combat 7 | . . . . . . . . . . 1 . . 2 . 4 . Combat 57 | . . . . . . . . . . 15 . 9 2 19 2 10 Robot Hacks Applied 80 | . . . . . . . . . . 20 . 9 12 21 7 11 parse_system 1 | . . . . . . . . . . 1 . . . . . . drop_inventory 1 | . . . . . . . . . . . . . . . 1 . purge_threat 2 | . . . . . . . . . . . . . 2 . . . locate_traps 1 | . . . . . . . . . . . . . 1 . . . reprogram_traps 1 | . . . . . . . . . . . . . 1 . . . summon_haulers 2 | . . . . . . . . . . . . . 1 . 1 . recall_investigation 3 | . . . . . . . . . . . . . 3 . . . map_route 2 | . . . . . . . . . . . . . . . 2 . find_garrison 2 | . . . . . . . . . . . . . 1 . 1 . disrupt_area 2 | . . . . . . . . . . . . . . 1 . 1 spike_heat 3 | . . . . . . . . . . 2 . . . 1 . . overload_power 1 | . . . . . . . . . . 1 . . . . . . amplify_resonance 5 | . . . . . . . . . . 1 . 1 . 1 . 2 reboot_system 19 | . . . . . . . . . . 8 . 2 1 1 2 5 go_dormant 2 | . . . . . . . . . . 1 . . . . . 1 overwrite_iff 14 | . . . . . . . . . . 3 . 3 1 6 . 1 formatsys_low 2 | . . . . . . . . . . 1 . . 1 . . . formatsys_high 17 | . . . . . . . . . . 2 . 3 . 11 . 1 Relay Couplers Released 68 | . . . . . . . . . . 18 . 18 . 21 . 11 Machine Destruction 68 | . . . . . . . . . . 18 . 18 . 21 . 11 Attached 32 | . . . . . . . . . . 8 . 7 1 9 2 5 Fabnet Peak Effective % . | . . . . . . . . . . . . . . . . . Robots Rewired 15 | . . . . . 5 . . . . 6 . . . 4 . . Allies Hacked . | . . . . . . . . . . . . . . . . . Hacks Repelled . | . . . . . . . . . . . . . . . . . Allies | -11 -10 -9 -8 -8 -8 -8 -6 -6 -6 -6 -6 -6 -5 -5 -5 -5 -------- Run | Yrd Mat Mat Mat Sto Rec Scr Fac Was Fac Gar Fac Gar Fac Gar Fac Gar Total Allies 55 | . . . . 2 5 . . 1 . 12 . 8 2 21 . 4 Largest Group 9 | . . . . 2 5 5 . 1 . 5 4 5 4 9 8 3 Highest-Rated Group 363 | . . . . 62 82 82 . 31 . 156 127 228 206 363 334 91 Highest-Rated Ally 80 | . . . . 31 34 34 . 31 . 40 40 80 80 49 49 49 Total Orders 32 | . . . . . 2 1 . . . 1 . 19 . 9 . . STAY 15 | . . . . . 1 1 . . . . . 10 . 3 . . FOLLOW 6 | . . . . . 1 . . . . . . 2 . 3 . . GUARD 3 | . . . . . . . . . . . . . . 3 . . AID 8 | . . . . . . . . . . 1 . 7 . . . . Ally Attacks 261 | . . . . 8 . 18 . . . 40 . 21 24 93 43 14 Total Damage 6521 | . . . . 166 . 756 . . . 803 . 696 430 2005 1214 451 Kills 56 | . . . . 1 . 8 . . . 5 . 2 5 22 10 3 Allies Corrupted 1 | . . . . . . . . . . . . . . . . 1 Allies Melted 4 | . . . . . . 3 . . . 1 . . . . . . Intel | -11 -10 -9 -8 -8 -8 -8 -6 -6 -6 -6 -6 -6 -5 -5 -5 -5 ------- Run | Yrd Mat Mat Mat Sto Rec Scr Fac Was Fac Gar Fac Gar Fac Gar Fac Gar Active Infowar (turns) 2504 | . . . 474 726 . 217 184 26 478 6 . . 219 17 153 4 Sensors 799 | . . . . . . 217 75 26 478 3 . . . . . . Structural 450 | . . . . . . 3 51 . . 3 . . 219 17 153 4 T.N.C. 1200 | . . . 474 726 . . . . . . . . . . . . Machine Analysis 116 | . . . . . . . 116 . . . . . . . . . ECM 2 | . . . . . . . 2 . . . . . . . . . Robot Analysis Total 1 | . . . . . . . . . 1 . . . . . . . Derelict Logs Recovered . | . . . . . . . . . . . . . . . . . Drone Launches . | . . . . . . . . . . . . . . . . . Drone Recoveries . | . . . . . . . . . . . . . . . . . Exploration | -11 -10 -9 -8 -8 -8 -8 -6 -6 -6 -6 -6 -6 -5 -5 -5 -5 ------------- Run | Yrd Mat Mat Mat Sto Rec Scr Fac Was Fac Gar Fac Gar Fac Gar Fac Gar Turns Passed 13993 | 5 529 1286 674 1220 1614 2292 239 26 617 1228 186 1460 219 1311 277 810 Spaces Moved 14925 | 5 331 548 320 509 815 1994 531 80 884 1948 145 2016 441 2382 635 1341 Core 124 | . . . . . . 22 1 . . . . 1 . 100 . . Treads 3273 | . . 488 320 509 815 1141 . . . . . . . . . . Legs 480 | 5 331 60 . . . . . . . . . 84 . . . . Wheels . | . . . . . . . . . . . . . . . . . Hover 3 | . . . . . . . 3 . . . . . . . . . Flight 11045 | . . . . . . 831 527 80 884 1948 145 1931 441 2282 635 1341 Fastest Speed 23 | 120 120 120 155 152 160 32 32 32 32 25 25 23 23 23 23 32 Average Speed 62 | 120 120 155 156 158 186 107 32 32 33 26 25 35 23 25 29 35 Slowest Speed 240 | 120 120 160 160 225 240 240 200 32 102 32 25 200 103 109 35 120 Overloaded Moves . | . . . . . . . . . . . . . . . . . Propulsion Burnouts . | . . . . . . . . . . . . . . . . . Robots Hopped 38 | . . . . . . . 4 . 8 8 . 6 . 1 5 6 Potential Cave-ins . | . . . . . . . . . . . . . . . . . Cave-ins Triggered . | . . . . . . . . . . . . . . . . . Exploration Rate (%) 53 | 1 37 51 38 85 99 83 15 82 19 97 8 94 9 89 20 75 Regions Visited 16 Branch Regions 3 Pre-discovered Areas 11 | . . . . . 6 4 . . 1 . . . . . . . Known Exits Taken 6 | . . . 1 . . 1 . . 1 . 1 . 1 . 1 . Unknown Exits Taken 5 | 1 1 1 . 1 1 . . . . . . . . . . . Scrap Searched 2 | . . . . . . 2 . . . . . . . . . . Spaces Dug 98 | . . . . 1 . 2 3 . 15 3 . 5 4 28 13 24 Terrain Destroyed 178 | . . . . 1 . 2 3 . 15 3 . 5 4 28 13 104 Melee 57 | . . . . 1 . . 3 . 15 3 . 5 . 4 7 19 Projectile 1 | . . . . . . . . . . . . . 1 . . . AOE 80 | . . . . . . . . . . . . . . . . 80 Terrain Rammed . | . . . . . . . . . . . . . . . . . Walls Destroyed . | . . . . . . . . . . . . . . . . . Machines Disabled . | . . . . . . . . . . . . . . . . . Actions | -11 -10 -9 -8 -8 -8 -8 -6 -6 -6 -6 -6 -6 -5 -5 -5 -5 --------- Run | Yrd Mat Mat Mat Sto Rec Scr Fac Was Fac Gar Fac Gar Fac Gar Fac Gar Total 18416 | 4 403 817 423 711 882 2133 578 79 1132 2497 293 2630 545 3009 709 1571 Wait 1817 | . 17 107 30 1 2 28 23 . 187 349 146 381 46 380 22 98 Move 14842 | 4 330 547 319 508 814 1993 523 79 867 1931 145 2005 441 2379 627 1330 Hop 33 | . . . . . . . 4 . 8 8 . 4 . 1 3 5 Pick Up 140 | . 7 20 5 13 3 30 2 . 4 16 . 9 3 20 3 5 Fast Attach 143 | . 2 7 2 15 . 20 5 . 8 13 2 24 5 28 6 6 Attach 49 | . . 7 1 5 2 2 2 . . 6 . 6 3 8 1 6 Detach 37 | . . 1 . . 2 4 1 . 3 7 . 4 1 8 2 4 Swap 181 | . 5 12 11 20 3 11 7 . 2 20 . 22 15 32 11 10 Drop 214 | . 8 21 15 27 2 32 4 . 8 24 . 19 12 24 12 6 Fire 424 | . 30 89 38 107 10 . . . . 40 . 30 18 37 8 17 Melee 306 | . . . . 1 . 13 7 . 30 68 . 45 . 45 14 83 Ram . | . . . . . . . . . . . . . . . . . Kick 11 | . 4 . . . . . . . . . . 7 . . . . Crush 17 | . . 6 2 3 6 . . . . . . . . . . . Escape Stasis 139 | . . . . . . . . . 15 15 . 71 . 38 . . Rewire 52 | . . . . . 38 . . . . . . 3 1 9 . 1 Trap 11 | . . . . 11 . . . . . . . . . . . . Miscellaneous . | . . . . . . . . . . . . . . . . . Route ------- -11/Scrapyard -10/Materials (discovered 2 exits: *Mat / [*Min]) -9/Materials (discovered 3 exits: *Mat / *Min x2) -8/Materials (discovered 3 exits: [*Fac] / *Sto x2) -8/Storage (discovered 2 exits: [*Fac] / *Rec) -8/Recycling (discovered 2 exits: *Fac / *Scr) -8/Scraptown (discovered 2 exits: *Fac x2) -6/Factory (discovered 6 exits: Fac x4 / *Low x2) -6/Waste -6/Factory -6/Garrison (discovered 3 exits: *Fac x3) -6/Factory -6/Garrison (discovered 3 exits: *Fac x3) -5/Factory (discovered 2 exits: Upp / Gar) -5/Garrison (discovered 3 exits: *Fac x3) -5/Factory (discovered 3 exits: [*Fac] / *Upp / Gar) -5/Garrison (discovered 3 exits: [*Fac x3]) History --------- Turn | Location | Event 1 | -11/Scrapyard | Discovered new exit (range 2) 6 | -11/Scrapyard | Entered Materials 292 | -10/Materials | Discovered new exit (range 11) 316 | -10/Materials | Build established: Mutant 429 | -10/Materials | Discovered new exit (range 12) 535 | -10/Materials | Entered another Materials area 535 | -9/Materials | Evolved 2 slots: Propulsion x1, Utility x1 610 | -9/Materials | Discovered new exit (range 12) 715 | -9/Materials | Lost 4 parts (2n1u1w) 848 | -9/Materials | Build established: Scavenger-Mutant 1047 | -9/Materials | Discovered new exit (range 7) 1274 | -9/Materials | Discovered new exit (range 10) 1490 | -9/Materials | Repaired Lgt. Treads 1518 | -9/Materials | Repaired Lgt. Treads 1545 | -9/Materials | Repaired Lgt. Treads 1623 | -9/Materials | Core integrity fell below 50% 1728 | -9/Materials | Identified exit to Mines 1821 | -9/Materials | Entered another Materials area 1821 | -8/Materials | Evolved 2 slots: Utility x2 2112 | -8/Materials | Discovered new exit (range 10) 2314 | -8/Materials | Identified exit to Storage 2484 | -8/Materials | Central database locked down 2495 | -8/Materials | Entered Storage 3199 | -8/Storage | Discovered new exit (range 16) 3249 | -8/Storage | Met a pair of Derelict thieves 3345 | -8/Storage | Core integrity fell below 50% 3518 | -8/Storage | Garrison activated, responded to threat 3708 | -8/Storage | Used back door to open Recycling access 3708 | -8/Storage | Discovered new exit (range 5) 3715 | -8/Storage | Entered Recycling 3718 | -8/Recycling | Build established: Mutant 4311 | -8/Recycling | Build established: Commander-Mutant 4555 | -8/Recycling | Discovered new exit (range 5) 5269 | -8/Recycling | Scanned before Scraplab entrance 5305 | -8/Recycling | Entered Scraplab 5324 | -8/Recycling | Discovered new exit (range 2) 5329 | -8/Recycling | Entered Scraptown 5329 | -8/Scraptown | Accompanied by 5 allies 5604 | -8/Scraptown | Discovered new exit (range 11) 5756 | -8/Scraptown | Visited UFD Registry 5756 | -8/Scraptown | Registered with UFD as "Dataface" 5822 | -8/Scraptown | Visited SPCMW 6137 | -8/Scraptown | Visited Science Testing Area 6160 | -8/Scraptown | Visited LU-1G1's Boring Crew 6184 | -8/Scraptown | Visited Sword Containment 6245 | -8/Scraptown | Visited Scrapoid Pod Storage 6259 | -8/Scraptown | Visited Curators Association 6317 | -8/Scraptown | Visited Scrapoid Research Area 6342 | -8/Scraptown | Visited A0-MCA Data Center 6352 | -8/Scraptown | Given a B+ rating by A0-MCA 6366 | -8/Scraptown | Found A0-MCA's Component Scanner 6401 | -8/Scraptown | Visited Cartography Club 6430 | -8/Scraptown | Found Surveybot 17 Chip 6453 | -8/Scraptown | Learned location of Recycling (-8) 6453 | -8/Scraptown | Learned location of Lower Caves (-7) 6453 | -8/Scraptown | Learned location of Upper Caves (-4) 6453 | -8/Scraptown | Learned location of Proximity Caves (-6) 6453 | -8/Scraptown | Learned 8 Materials zone layouts 6453 | -8/Scraptown | Learned 12 Materials zone layouts 6453 | -8/Scraptown | Learned 4 Access zone layouts 6453 | -8/Scraptown | Learned 8 Access zone layouts 6453 | -8/Scraptown | Learned 4 Mines zone layouts 6453 | -8/Scraptown | Learned 16 Upper Caves zone layouts 6453 | -8/Scraptown | Learned 12 Proximity Caves zone layouts 6453 | -8/Scraptown | Learned 4 Hub_04(d) zone layouts 6453 | -8/Scraptown | Learned location of 3 exits from Factory 6453 | -8/Scraptown | Learned location of 1 exit from Lower Caves 6453 | -8/Scraptown | Learned location of 1 exit from Upper Caves 6453 | -8/Scraptown | Identified exit to Factory 6456 | -8/Scraptown | Found Deep Structural Scanner 6655 | -8/Scraptown | Visited IN-MT5's Study 6676 | -8/Scraptown | Visited Comm Corps 6769 | -8/Scraptown | Visited The Evicted 6785 | -8/Scraptown | Visited Awakened 7145 | -8/Scraptown | Visited Scrap Suit Storage 7421 | -8/Scraptown | Met Optimus 7421 | -8/Scraptown | Accepted into 0bPrime 7445 | -8/Scraptown | Civil war broke out across Scraptown 7505 | -8/Scraptown | Lost 7 allies 7509 | -8/Scraptown | Found Prototype Processor 7555 | -8/Scraptown | Found Prototype Special Weapon 7556 | -8/Scraptown | Lost 4 allies 7572 | -8/Scraptown | Found Deep Structural Scanner 7603 | -8/Scraptown | Identified LU-1G1's Laser Shovel 7621 | -8/Scraptown | Entered Factory 7621 | -6/Factory | Evolved 4 slots: Propulsion x2, Utility x2 7622 | -6/Factory | Identified exit to Factory 7623 | -6/Factory | Identified exit to Lower Caves 7645 | -6/Factory | Lost 4 allies 7655 | -6/Factory | Spotted B-75 Beast 7723 | -6/Factory | Identified Expert System 7773 | -6/Factory | Discovered exit to Lower Caves (range 15) 7860 | -6/Factory | Sucked down chute 7860 | -6/Factory | Entered Waste 7861 | -6/Waste | Met a frightened Derelict 7867 | -6/Waste | Spotted C-40 Crusher 7868 | -6/Waste | Spotted C-40 Crusher 7870 | -6/Waste | Spotted C-40 Crusher 7874 | -6/Waste | Spotted C-40 Crusher 7875 | -6/Waste | EMP discharged 7875 | -6/Waste | System corruption reached 10% 7879 | -6/Waste | Spotted C-40 Crusher 7880 | -6/Waste | Spotted C-40 Crusher 7881 | -6/Waste | Discovered new exit (range 14) 7885 | -6/Waste | Identified exit to Factory 7886 | -6/Waste | Entered Factory 8294 | -6/Factory | Loaded intel: 8 recycling unit locations 8298 | -6/Factory | Repaired Imp. Light Armor Plating 8341 | -6/Factory | Build established: Hacker-Sprinter 8410 | -6/Factory | Identified exit to Garrison 8442 | -6/Factory | Learned location of Protoforge (-3) 8503 | -6/Factory | Entered Garrison 8521 | -6/Garrison | Warlord forces raided the area 8528 | -6/Garrison | Installed Relay Interface Framework 8531 | -6/Garrison | Triggered checkpoint 8532 | -6/Garrison | Garrison Relay disabled 8561 | -6/Garrison | Triggered checkpoint 8718 | -6/Garrison | P-60 Hacker assimilated allied S-27 Virus 8809 | -6/Garrison | Spotted B-75 Beast 8813 | -6/Garrison | Lost 4 allies 8815 | -6/Garrison | Triggered checkpoint 8869 | -6/Garrison | Lost 8 allies 8871 | -6/Garrison | Triggered checkpoint 8898 | -6/Garrison | Garrison Relay disabled 8907 | -6/Garrison | Discovered new exit (range 8) 8913 | -6/Garrison | Lost 4 allies 8999 | -6/Garrison | Build established: Bothacker-Sprinter 9039 | -6/Garrison | Triggered checkpoint 9057 | -6/Garrison | Triggered checkpoint 9107 | -6/Garrison | Spotted B-75 Beast 9107 | -6/Garrison | Spotted B-75 Beast 9117 | -6/Garrison | Discovered new exit (range 15) 9130 | -6/Garrison | Identified exit to Factory 9167 | -6/Garrison | Triggered checkpoint 9418 | -6/Garrison | Garrison Relay disabled 9477 | -6/Garrison | Garrison Relay disabled 9521 | -6/Garrison | Garrison Relay disabled 9529 | -6/Garrison | Triggered checkpoint 9584 | -6/Garrison | Discovered exit to Factory (range 14) 9731 | -6/Garrison | Entered Factory 9731 | -6/Factory | Accompanied by 4 allies 9806 | -6/Factory | Repaired Imp. Flight Unit 9868 | -6/Factory | Repaired Imp. VTOL Module 9882 | -6/Factory | Identified exit to Garrison 9917 | -6/Factory | Entered Garrison 9917 | -6/Garrison | Accompanied by 1 ally 9929 | -6/Garrison | Triggered checkpoint 9978 | -6/Garrison | Expanded RIF knowledge: Signal Jamming 10101 | -6/Garrison | Triggered checkpoint 10101 | -6/Garrison | Spotted B-75 Beast 10131 | -6/Garrison | Garrison Relay disabled 10187 | -6/Garrison | Triggered checkpoint 10209 | -6/Garrison | Garrison Relay disabled 10223 | -6/Garrison | Triggered checkpoint 10359 | -6/Garrison | Discovered exit to Factory (range 12) 10394 | -6/Garrison | Phase Generator disabled 10395 | -6/Garrison | Core integrity fell below 50% 10431 | -6/Garrison | Triggered checkpoint 10480 | -6/Garrison | Triggered checkpoint 10604 | -6/Garrison | Lost 11 parts (3p5n2u1w) 10943 | -6/Garrison | Destroyed B-75 Beast 10996 | -6/Garrison | Garrison Relay disabled 11030 | -6/Garrison | Discovered exit to Factory (range 9) 11127 | -6/Garrison | Discovered exit to Factory (range 15) 11129 | -6/Garrison | Found embedded Infiltrators 11144 | -6/Garrison | Garrison Relay disabled 11359 | -6/Garrison | Found Relay Coupler [Proto] 11377 | -6/Garrison | Entered Factory 11377 | -5/Factory | Accompanied by 4 allies 11377 | -5/Factory | Evolved 2 slots: Utility x2 11378 | -5/Factory | Identified exit to Upper Caves 11470 | -5/Factory | Loaded intel: 8 recycling unit locations 11536 | -5/Factory | Central database locked down 11593 | -5/Factory | Identified exit to Garrison 11596 | -5/Factory | Entered Garrison 11596 | -5/Garrison | Accompanied by 1 ally 11605 | -5/Garrison | Garrison Relay disabled 11610 | -5/Garrison | Triggered checkpoint 11732 | -5/Garrison | Spotted B-75 Beast 11793 | -5/Garrison | Triggered checkpoint 11797 | -5/Garrison | Spotted B-75 Beast 11939 | -5/Garrison | Lost 3 parts (3n) 11967 | -5/Garrison | Core integrity fell below 50% 12128 | -5/Garrison | Garrison Relay disabled 12134 | -5/Garrison | Triggered checkpoint 12167 | -5/Garrison | Discovered new exit (range 3) 12270 | -5/Garrison | Triggered checkpoint 12270 | -5/Garrison | Triggered checkpoint 12271 | -5/Garrison | Destroyed B-75 Beast 12277 | -5/Garrison | Triggered checkpoint 12349 | -5/Garrison | Garrison Relay disabled 12356 | -5/Garrison | Triggered checkpoint 12413 | -5/Garrison | Discovered new exit (range 13) 12446 | -5/Garrison | Expanded RIF knowledge: Patrol Navigation 12458 | -5/Garrison | Garrison Relay disabled 12500 | -5/Garrison | Discovered new exit (range 10) 12506 | -5/Garrison | Triggered checkpoint 12552 | -5/Garrison | Triggered checkpoint 12569 | -5/Garrison | Garrison Relay disabled 12650 | -5/Garrison | Triggered checkpoint 12907 | -5/Garrison | Entered Factory 12907 | -5/Factory | Accompanied by 8 allies 12940 | -5/Factory | Spotted B-75 Beast 12950 | -5/Factory | Discovered exit to Upper Caves (range 15) 13037 | -5/Factory | Loaded intel: 8 recycling unit locations 13122 | -5/Factory | Discovered new exit (range 22) 13184 | -5/Factory | Identified exit to Garrison 13184 | -5/Factory | Entered Garrison 13192 | -5/Garrison | Triggered checkpoint 13215 | -5/Garrison | Garrison Relay disabled 13304 | -5/Garrison | Spotted B-75 Beast 13530 | -5/Garrison | Garrison Relay disabled 13543 | -5/Garrison | Discovered new exit (range 13) 13602 | -5/Garrison | Garrison Relay disabled 13614 | -5/Garrison | Triggered checkpoint 13619 | -5/Garrison | Discovered new exit (range 10) 13679 | -5/Garrison | Rescued a captive Derelict 13680 | -5/Garrison | Rescued a captive Derelict 13689 | -5/Garrison | Build established: Bothacker-Mutant 13804 | -5/Garrison | Triggered checkpoint 13805 | -5/Garrison | Discovered new exit (range 16) 13825 | -5/Garrison | P-70 Sage assimilated allied BD-H6F(b) 13881 | -5/Garrison | System corruption reached 10% 13888 | -5/Garrison | Phase Generator disabled 13934 | -5/Garrison | Core integrity fell below 20% 13994 | -5/Garrison | Destroyed by P-70 Sage with High-powered Shock Rifle Last Messages --------------- 13957_ P-70 Sage knocked back. 13960_ Cesium-ion Thruster destroyed. 13961_ System corrupted: Matter fused (-8). 13965_ Adv. Melee Analysis Suite destroyed. 13967_ Destroyed Mic. Fission Core. 13967_ P-70 Sage system corrupted by crushing effect. 13968_ P-70 Sage resets P-70 Sage, system corruption cleaned. 13971_ Destroyed Antigrav System. 13971_ P-70 Sage system corrupted by crushing effect. 13972_ Nuclear Pulse Array destroyed. 13974_ Deep Structural Scanner destroyed. 13976_ 7YDOTCY MWMA01HE 4X5GPSC|RA&BEWQS 13976_ P-70 Sage resets P-70 Sage, system corruption cleaned. 13985_ Acquired 11 matter. 13986_ Acquired Imp. Medium Armor Plating. 13989_ Acquired Power Maul. Map ----- +----------------------------------------------------+ | ?? #### #### #????##! !##** "## | | ?? #### #### #????#"" ""## #### | | ??? ?#### #### #????########### #??# | | ??? ?#### #### #??????????????# #??# | | ???? ??#### #?????????????## #### | | ???? ??######### #?????????????#" "" | | ???? ???######### #?????????????###"#%" | | ????? ???######### #???????????????### %# | | ????? ????######### #?????????????????# =# | | ?????? ### ????????????# #?????????????????# # | | ??????###??#?????????????# ####???####???????# # | | ?????????????????????????# #???#""######### # | | ???????????"?"???????????# ## #???#" %" # | | ???????????"?"???????????# #??#???#" ######### # | | ???????????"?"???????????# #??????#" #####???# # | | ???????????"""???????????#p #??????#" "# #???# # | | ????????????????????????## ##""""##; "" #????# # | | ????????????????????????#p ^ "####### # | | ????????????????????????# " | | ????????????????????????# # | | ????????????????????????# ## ## ########### | | ??????????????????????### ## ## #?????????? | | ??????????????????????# % "?????????? | | ??????????????????????#*%! "?????????? | | ??????????????????????# *% "?????????? | | ??????????????????????#/!@! "?????????? | | ??????????????????????### = ## ## #?????????? | | ????????????############# ! ## ## #?????????? | | ????????#####"" | #####?????? | | ????????# #?????? | | ????????# ##### #?# #?????? | | ????????# #???# ##### ######""""## ### ####### | | ????????# #???# #???# #??????????# T## | | ??????###"##### ##### ########???# ### ####### | | ??????# #! " #???# #?# #?????? | | ??????#"! " "#### ########???# #?# #?????? | | ??????#" ! #### "#??# #??????????# #?# ##????? | | ??????#" #??# ##??# #??????????# ####"###### | | ??????#"# #??# #???# #??????????# | | ??????### #??# #???# #??????????# | | ????????# #### #???# #??????????# | | ????????# + ?# #???# #??????????############### | | ??????### #??# #???# #????????????????????????? | | ???#### #??# #???# #????????????????????????? | | ???# " #??# #???# #????????????????######### | | ???# ## #??# #???# #???????????????## | | ???# #### #??# #???# #???????????????#" | | #### #??# #### ##### #???????????????###! !#### | | ## ##?# *%= # ##???????????????#"" ""#?? | | ### ==% ######"#???????????????#######?? | +----------------------------------------------------+ Best States ------------- Heat Dissipation 71 Energy Generation 19 Energy Capacity 300 Matter Stores 300 Matter Capacity 300 Sight Range 16 Robot Scan Range 16 Terrain Scan Density 10 ECM Strength 1 Additional Mass Support 12 Armor Coverage 375 Melee Speed Boost 50 Evasion (%) 65 Targeting Accuracy 8 Melee Accuracy 8 Recoil Reduction 3 Offensive Hacking 34 Defensive Hacking 10 Relay Coupler Types 4 Relay Coupler Value 118 Item Schematics ----------------- None Robot Schematics ------------------ M-13 Machinist | -8/Materials | Hacked Fabricated ------------ Nothing Repaired ---------- Lgt. Treads | 19% | -9/Materials Lgt. Treads | 36% | -9/Materials Lgt. Treads | 57% | -9/Materials Imp. Light Armor Plating | 57% | -6/Factory Imp. Flight Unit | 50% | -6/Factory Imp. VTOL Module | 50% | -6/Factory Studied --------- Imp. Datajack | -6/Factory | Hacked Lgt. Angular Momentum Engine | -6/Factory | Hacked Hvy. Pick | -6/Factory | Hacked VTOL Module | -5/Factory | Hacked Imp. Remote Datajack | -5/Factory | Hacked Alien Tech Used ----------------- None Achievements -------------- None Challenges ------------ None Game ------ Seed WarpIntegrityCompanion Manual? 0 Play Time 02:45:16 Cumulative 403.0 hours Start 2025.11.17 @ 16:55:26 End 2025.11.19 @ 12:18:01 Sessions 4 Manual Loads 0 Difficulty Rogue Special Mode None Game No. 129 Rogue 129 Adventurer 0 Explorer 0 Win Type - Total 11 Types 3/0/5/0/1/0/1/0/0/1 Lore% 79 Gallery% 86 Achievement% 71 Wizard Run 0 Options --------- Layout 1 ASCII 0 Keyboard 1 Movement Arrows Keybinds 0 Fullscreen 1 Font 24/Smallcaps Map View 50x35 Zoom Use 0% Tactical HUD 1 Map Filters NONE Filters NONE Steam 1 RUN: 44c77ed3-b74c-4005-8c00-010a2c5f6a9e